[Event "OEBRO 85th Anniversary GM 2021"]
[Site "Copenhagen"]
[Date "2021.10.24"]
[Round "9.1"]
[White "Hamitevici, Vladimir"]
[Black "Ramsdal, Jens Albert"]
[Result "1/2-1/2"]
[ECO "A05"]
[WhiteElo "2465"]
[BlackElo "2261"]
[Annotator "ChessBase"]
[PlyCount "139"]
[EventDate "2021.10.18"]
[EventType "swiss"]
[EventCountry "DEN"]
[SourceTitle "playchess.com"]
[Source "ChessBase"]
[SourceQuality "1"]
[TimeControl "40/5400+30:900+30"]

1. Nf3 {[%emt 0:01:50]} Nf6 {[%emt 0:00:15]} 2. c4 {[%emt 0:00:12]} e6 {[%emt 0:00:14]} 3. g3 {[%emt 0:00:07]} d5 {[%emt 0:00:07]} 4. b3 {[%emt 0:00:40]} d4 {[%emt 0:01:39]} 5. Bg2 {[%emt 0:00:20]} c5 {[%emt 0:01:09]} 6. O-O {[%emt 0:03:20]} Nc6 {[%emt 0:00:05]} 7. e3 {[%emt 0:00:15]} Be7 {[%emt 0:00:26]} 8. exd4 {[%emt 0:00:33]} cxd4 {[%emt 0:04:07]} 9. d3 {[%emt 0:00:16]} O-O {[%emt 0:00:19]} 10. Bg5 {[%emt 0:02:33]} Nd7 {[%emt 0:04:39]} 11. Bxe7 {[%emt 0:02:43]} Qxe7 {[%emt 0:01:52]} 12. Re1 {[%emt 0:00:08]} Nc5 {[%emt 0:06:29]} 13. Ne5 {[%emt 0:03:02]} Nxe5 {[%emt 0:00:47]} 14. Rxe5 {[%emt 0:00:02]} a5 {[%emt 0:00:20]} 15. Qc2 {[%emt 0:01:46]} f6 {[%emt 0:01:37]} 16. Re1 {[%emt 0:00:28]} e5 {[%emt 0:00:56]} 17. Nd2 {[%emt 0:00:09]} Bf5 {[%emt 0:16:57]} 18. Ne4 {[%emt 0:00:37]} Bxe4 {[%emt 0:00:55]} 19. Bxe4 {[%emt 0:00:07]} Nxe4 {[%emt 0:01:25]} 20. Rxe4 {[%emt 0:00:07]} f5 {[%emt 0:00:23]} 21. Ree1 {[%emt 0:01:26]} Rae8 {[%emt 0:03:15]} 22. c5 {[%emt 0:01:25]} Kh8 {[%emt 0:03:30]} 23. Qc4 {[%emt 0:01:45]} Qf6 {[%emt 0:05:39]} 24. Qd5 {[%emt 0:05:26]} f4 {[%emt 0:03:48]} 25. Qg2 {[%emt 0:00:29]} f3 {[%emt 0:05:52]} 26. Qh3 {[%emt 0:01:40]} Qc6 {[%emt 0:01:24]} 27. Re4 {[%emt 0:01:46]} Qb5 {[%emt 0:06:25]} 28. Rae1 {[%emt 0:03:11]} Qxd3 {[%emt 0:01:14]} 29. Qd7 {[%emt 0:00:06]} Qc3 {[%emt 0:02:53]} 30. Qd5 {[%emt 0:01:49]} d3 {[%emt 0:00:23]} 31. Qc4 {[%emt 0:00:09]} Qxc4 {[%emt 0:01:00]} 32. bxc4 {[%emt 0:02:30]} Re7 {[%emt 0:03:40]} 33. Rd1 {[%emt 0:02:52]} Rd8 {[%emt 0:00:17]} 34. Rd2 {[%emt 0:00:27]} g6 {[%emt 0:06:11]} 35. h4 {[%emt 0:04:02]} h5 {[%emt 0:00:46]} 36. Kh2 {[%emt 0:00:30]} Kg7 {[%emt 0:00:22]} 37. g4 {[%emt 0:00:07]} Kf6 {[%emt 0:04:56]} 38. Kg3 {[%emt 0:00:09]} hxg4 {[%emt 0:00:41]} 39. Kxg4 {[%emt 0:00:11]} Rc7 {[%emt 0:00:19]} 40. Kxf3 {[%emt 0:00:38]} Rxc5 {[%emt 0:01:54]} 41. Ke3 {[%emt 0:15:07]} Rdc8 {[%emt 0:23:07]} 42. Kxd3 {[%emt 0:02:22]} Rd8+ {[%emt 0:00:00]} 43. Ke3 {[%emt 0:00:00]} Rxd2 {[%emt 0:00:00]} 44. Kxd2 {[%emt 0:00:00]} Kf5 {[%emt 0:00:00]} 45. f3 {[%emt 0:00:00]} b6 {[%emt 0:00:00]} 46. Rg4 {[%emt 0:00:00]} Rc7 {[%emt 0:00:00]} 47. Ke3 {[%emt 0:00:00]} Rd7 {[%emt 0:00:00]} 48. Rg5+ {[%emt 0:00:00]} Kf6 {[%emt 0:00:00]} 49. Ke2 {[%emt 0:02:09]} Rd6 {[%emt 0:00:00]} 50. Rg1 {[%emt 0:01:27]} Kf5 {[%emt 0:00:00]} 51. Rg5+ {[%emt 0:00:10]} Kf6 {[%emt 0:00:00]} 52. Rg1 {[%emt 0:00:07]} Rc6 {[%emt 0:00:00]} 53. Kd3 {[%emt 0:01:44]} Kf5 {[%emt 0:00:00]} 54. Rg5+ {[%emt 0:00:48]} Kf6 {[%emt 0:00:00]} 55. Rg1 {[%emt 0:00:32]} Kf7 {[%emt 0:00:00]} 56. Rg5 {[%emt 0:02:58]} Rf6 {[%emt 0:00:00]} 57. Ke4 {[%emt 0:07:37]} Rf4+ {[%emt 0:00:00]} 58. Kxe5 {[%emt 0:00:05]} Rxh4 {[%emt 0:01:49]} 59. f4 {[%emt 0:00:25]} Rh2 {[%emt 0:00:06]} 60. f5 {[%emt 0:01:36]} gxf5 {[%emt 0:00:05]} 61. Rxf5+ {[%emt 0:00:05]} Ke7 {[%emt 0:00:07]} 62. Kd5 {[%emt 0:03:47]} Rxa2 {[%emt 0:00:18]} 63. Kc6 {[%emt 0:01:52]} Rb2 {[%emt 0:01:27]} 64. Re5+ {[%emt 0:01:32]} Kf6 {[%emt 0:00:08]} 65. Rb5 {[%emt 0:00:12]} Rxb5 {[%emt 0:02:11]} 66. Kxb5 {[%emt 0:00:06]} Ke5 {[%emt 0:00:37]} 67. c5 {[%emt 0:00:07]} bxc5 {[%emt 0:00:06]} 68. Kxc5 {[%emt 0:00:04]} a4 {[%emt 0:00:05]} 69. Kb4 {[%emt 0:00:07]} a3 {[%emt 0:00:03]} 70. Kxa3 1/2-1/2

[Event "OEBRO 85th Anniversary GM 2021"]
[Site "Copenhagen"]
[Date "2021.10.24"]
[Round "9.2"]
[White "Stefansson, Vignir Vatnar"]
[Black "Kozak, Adam"]
[Result "1/2-1/2"]
[ECO "D35"]
[WhiteElo "2399"]
[BlackElo "2516"]
[Annotator "ChessBase"]
[PlyCount "53"]
[EventDate "2021.10.18"]
[EventType "swiss"]
[EventCountry "DEN"]
[SourceTitle "playchess.com"]
[Source "ChessBase"]
[SourceQuality "1"]
[TimeControl "40/5400+30:900+30"]

1. d4 {[%emt 0:00:04]} Nf6 {[%emt 0:03:17]} 2. c4 {[%emt 0:00:19]} e6 {[%emt 0:00:32]} 3. Nc3 {[%emt 0:00:28]} d5 {[%emt 0:01:48]} 4. cxd5 {[%emt 0:00:11]} exd5 {[%emt 0:00:09]} 5. Bg5 {[%emt 0:00:14]} c6 {[%emt 0:00:10]} 6. e3 {[%emt 0:00:08]} Nbd7 {[%emt 0:00:57]} 7. Bd3 {[%emt 0:00:32]} Be7 {[%emt 0:00:43]} 8. Nge2 {[%emt 0:00:12]} Nf8 {[%emt 0:02:12]} 9. Qc2 {[%emt 0:01:15]} Ne6 {[%emt 0:01:55]} 10. Bh4 {[%emt 0:02:06]} g6 {[%emt 0:06:21]} 11. O-O {[%emt 0:00:51]} O-O {[%emt 0:00:45]} 12. Rae1 {[%emt 0:05:47]} Ng4 {[%emt 0:05:10]} 13. Bxe7 {[%emt 0:04:43]} Qxe7 {[%emt 0:00:13]} 14. h3 {[%emt 0:00:25]} Nf6 {[%emt 0:00:30]} 15. a3 {[%emt 0:02:18]} Ng7 {[%emt 0:05:45]} 16. Nf4 {[%emt 0:04:21]} Bf5 {[%emt 0:03:24]} 17. Ra1 {[%emt 0:03:34]} Nfe8 {[%emt 0:10:20]} 18. b4 {[%emt 0:03:50]} a6 {[%emt 0:00:14]} 19. Rfe1 {[%emt 0:07:20]} Nd6 {[%emt 0:03:43]} 20. a4 {[%emt 0:01:37]} b5 {[%emt 0:03:40]} 21. a5 {[%emt 0:06:44]} Nc4 {[%emt 0:04:03]} 22. Bxf5 {[%emt 0:00:18]} Nxf5 {[%emt 0:00:08]} 23. Nd3 {[%emt 0:00:05]} Nfd6 {[%emt 0:06:11]} 24. Nc5 {[%emt 0:00:26]} Nb7 {[%emt 0:08:03]} 25. Nd3 {[%emt 0:02:57]} Nbd6 {[%emt 0:00:11]} 26. Nc5 {[%emt 0:01:07]} Nb7 {[%emt 0:00:08]} 27. Nd3 {[%emt 0:03:10]} 1/2-1/2

[Event "OEBRO 85th Anniversary GM 2021"]
[Site "Copenhagen"]
[Date "2021.10.24"]
[Round "9.3"]
[White "Yankelevich, Lev"]
[Black "Kistrup, Nicolai"]
[Result "1-0"]
[ECO "A08"]
[WhiteElo "2432"]
[BlackElo "2249"]
[Annotator "ChessBase"]
[PlyCount "79"]
[EventDate "2021.10.18"]
[EventType "swiss"]
[EventCountry "DEN"]
[SourceTitle "playchess.com"]
[Source "ChessBase"]
[SourceQuality "1"]
[TimeControl "40/5400+30:900+30"]

1. Nf3 {[%emt 0:00:02]} d5 {[%emt 0:02:48]} 2. g3 {[%emt 0:00:07]} c5 {[%emt 0:01:09]} 3. Bg2 {[%emt 0:00:13]} Nf6 {[%emt 0:00:26]} 4. O-O {[%emt 0:00:06]} e6 {[%emt 0:02:01]} 5. d3 {[%emt 0:01:36]} Nc6 {[%emt 0:04:26]} 6. e4 {[%emt 0:00:03]} Be7 {[%emt 0:12:44]} 7. Qe2 {[%emt 0:00:22]} dxe4 {[%emt 0:15:35]} 8. dxe4 {[%emt 0:00:04]} e5 {[%emt 0:00:55]} 9. c3 {[%emt 0:04:24]} Bg4 {[%emt 0:05:20]} 10. h3 {[%emt 0:00:49]} Bxf3 {[%emt 0:07:22]} 11. Bxf3 {[%emt 0:01:41]} O-O {[%emt 0:00:55]} 12. Rd1 {[%emt 0:01:03]} Qc7 {[%emt 0:03:30]} 13. Na3 {[%emt 0:00:49]} a6 {[%emt 0:00:50]} 14. Nc4 {[%emt 0:00:16]} b5 {[%emt 0:02:57]} 15. Ne3 {[%emt 0:00:12]} Rad8 {[%emt 0:06:10]} 16. Nf5 {[%emt 0:00:35]} Rxd1+ {[%emt 0:02:44]} 17. Qxd1 {[%emt 0:00:11]} Rd8 {[%emt 0:01:43]} 18. Qe2 {[%emt 0:00:05]} Nd7 {[%emt 0:05:29]} 19. Nxe7+ {[%emt 0:00:49]} Nxe7 {[%emt 0:00:07]} 20. Bg5 {[%emt 0:00:02]} f6 {[%emt 0:02:40]} 21. Be3 {[%emt 0:00:05]} Nb6 {[%emt 0:05:00]} 22. b3 {[%emt 0:01:09]} c4 {[%emt 0:06:16]} 23. Bxb6 {[%emt 0:00:37]} Qxb6 {[%emt 0:00:09]} 24. bxc4 {[%emt 0:00:03]} Qc5 {[%emt 0:01:55]} 25. Bg4 {[%emt 0:04:13]} Kf7 {[%emt 0:01:25]} 26. cxb5 {[%emt 0:03:23]} Qxc3 {[%emt 0:00:44]} 27. Rd1 {[%emt 0:06:43]} Rxd1+ {[%emt 0:00:38]} 28. Qxd1 {[%emt 0:00:01]} axb5 {[%emt 0:00:20]} 29. Bd7 {[%emt 0:00:12]} b4 {[%emt 0:01:11]} 30. Ba4 {[%emt 0:01:15]} g6 {[%emt 0:04:24]} 31. Bb3+ {[%emt 0:00:39]} Kg7 {[%emt 0:00:11]} 32. Qd7 {[%emt 0:00:56]} Qc5 {[%emt 0:00:57]} 33. Qe6 {[%emt 0:00:13]} Nc6 {[%emt 0:01:09]} 34. Qf7+ {[%emt 0:02:36]} Kh6 {[%emt 0:00:05]} 35. Qxf6 {[%emt 0:00:02]} Nd4 {[%emt 0:01:44]} 36. Bg8 {[%emt 0:00:13]} Qc1+ {[%emt 0:01:27]} 37. Kg2 {[%emt 0:00:03]} Qg5 {[%emt 0:01:01]} 38. Qf7 {[%emt 0:00:06]} Kh5 {[%emt 0:00:30]} 39. Qxh7+ {[%emt 0:00:20]} Qh6 {[%emt 0:00:12]} 40. Qe7 {[%emt 0:00:37]} 1-0

[Event "OEBRO 85th Anniversary GM 2021"]
[Site "Copenhagen"]
[Date "2021.10.24"]
[Round "9.5"]
[White "Larsen, Karsten"]
[Black "Brynell, Stellan"]
[Result "0-1"]
[ECO "D05"]
[WhiteElo "2252"]
[BlackElo "2431"]
[Annotator "ChessBase"]
[PlyCount "120"]
[EventDate "2021.10.18"]
[EventType "swiss"]
[EventCountry "DEN"]
[SourceTitle "playchess.com"]
[Source "ChessBase"]
[SourceQuality "1"]
[TimeControl "40/5400+30:900+30"]

1. d4 {[%emt 0:00:03]} Nf6 {[%emt 0:00:09]} 2. Nf3 {[%emt 0:01:49]} d5 {[%emt 0:00:12]} 3. e3 {[%emt 0:01:27]} e6 {[%emt 0:00:30]} 4. c4 {[%emt 0:01:17]} c5 {[%emt 0:00:12]} 5. a3 {[%emt 0:02:43]} a6 {[%emt 0:00:07]} 6. dxc5 {[%emt 0:01:39]} Bxc5 {[%emt 0:00:23]} 7. b4 {[%emt 0:00:10]} Bd6 {[%emt 0:00:34]} 8. Bb2 {[%emt 0:01:35]} O-O {[%emt 0:01:31]} 9. Nbd2 {[%emt 0:00:39]} a5 {[%emt 0:05:05]} 10. c5 {[%emt 0:10:28]} Be7 {[%emt 0:00:09]} 11. Rc1 {[%emt 0:01:31]} axb4 {[%emt 0:04:43]} 12. axb4 {[%emt 0:00:12]} Na6 {[%emt 0:00:20]} 13. Qb3 {[%emt 0:02:07]} Bd7 {[%emt 0:02:42]} 14. Be2 {[%emt 0:05:36]} Qe8 {[%emt 0:01:29]} 15. Bxa6 {[%emt 0:34:38]} Rxa6 {[%emt 0:11:57]} 16. O-O {[%emt 0:00:08]} Bb5 {[%emt 0:10:42]} 17. Rfe1 {[%emt 0:00:28]} Qd7 {[%emt 0:01:32]} 18. Ra1 {[%emt 0:05:06]} Rfa8 {[%emt 0:05:19]} 19. Rxa6 {[%emt 0:01:10]} Rxa6 {[%emt 0:00:27]} 20. Ra1 {[%emt 0:01:30]} Ne8 {[%emt 0:05:00]} 21. Ne5 {[%emt 0:09:51]} Rxa1+ {[%emt 0:04:35]} 22. Bxa1 {[%emt 0:00:02]} Qc7 {[%emt 0:01:37]} 23. Nef3 {[%emt 0:06:09]} Qc8 {[%emt 0:11:24]} 24. Qa3 {[%emt 0:01:20]} Nc7 {[%emt 0:01:52]} 25. Be5 {[%emt 0:02:16]} f6 {[%emt 0:03:22]} 26. Bxc7 {[%emt 0:04:07]} Qxc7 {[%emt 0:00:03]} 27. Nd4 {[%emt 0:01:01]} Bd7 {[%emt 0:00:15]} 28. Qa7 {[%emt 0:00:05]} Kf7 {[%emt 0:05:09]} 29. N2b3 {[%emt 0:00:45]} e5 {[%emt 0:00:39]} 30. Ne2 {[%emt 0:00:10]} Bc6 {[%emt 0:10:03]} 31. Nc3 {[%emt 0:03:10]} Qd7 {[%emt 0:00:15]} 32. Qa2 {[%emt 0:01:39]} Kf8 {[%emt 0:02:48]} 33. Qd2 {[%emt 0:00:38]} b6 {[%emt 0:04:50]} 34. Qd3 {[%emt 0:00:56]} bxc5 {[%emt 0:00:59]} 35. Nxc5 {[%emt 0:00:46]} Bxc5 {[%emt 0:00:37]} 36. bxc5 {[%emt 0:00:02]} Qa7 {[%emt 0:02:07]} 37. h3 {[%emt 0:01:12]} Qxc5 {[%emt 0:00:12]} 38. Kh2 {[%emt 0:00:28]} g6 {[%emt 0:00:23]} 39. Qd2 {[%emt 0:00:35]} Kg7 {[%emt 0:01:54]} 40. Kg1 {[%emt 0:00:10]} h5 {[%emt 0:01:08]} 41. Kh2 {[%emt 0:01:39]} d4 {[%emt 0:05:08]} 42. exd4 {[%emt 0:02:31]} Qxd4 {[%emt 0:00:06]} 43. Qe3 {[%emt 0:02:34]} Qxe3 {[%emt 0:00:41]} 44. fxe3 {[%emt 0:00:02]} h4 {[%emt 0:00:10]} 45. Kg1 {[%emt 0:00:15]} f5 {[%emt 0:01:16]} 46. Kf2 {[%emt 0:00:11]} Kf6 {[%emt 0:00:06]} 47. Nb1 {[%emt 0:01:24]} Ke6 {[%emt 0:00:16]} 48. Nd2 {[%emt 0:00:21]} Bd5 {[%emt 0:00:16]} 49. Nb1 {[%emt 0:01:30]} Kd6 {[%emt 0:00:16]} 50. Nc3 {[%emt 0:00:13]} Bc6 {[%emt 0:00:29]} 51. Nb1 {[%emt 0:00:46]} Kc5 {[%emt 0:00:11]} 52. Nd2 {[%emt 0:00:11]} Kb4 {[%emt 0:03:17]} 53. Nf1 {[%emt 0:02:18]} Kc3 {[%emt 0:00:38]} 54. g3 {[%emt 0:05:05]} g5 {[%emt 0:00:08]} 55. gxh4 {[%emt 0:00:05]} gxh4 {[%emt 0:00:05]} 56. Nh2 {[%emt 0:00:15]} Kd3 {[%emt 0:00:30]} 57. Nf1 {[%emt 0:00:13]} Be8 {[%emt 0:00:30]} 58. Nh2 {[%emt 0:03:17]} Bh5 {[%emt 0:00:34]} 59. Nf1 {[%emt 0:00:26]} Be2 {[%emt 0:00:53]} 60. Nh2 {[%emt 0:00:19]} e4 {[%emt 0:01:10]} 0-1

[Event "OEBRO 85th Anniversary GM 2021"]
[Site "Copenhagen"]
[Date "2021.10.24"]
[Round "9.6"]
[White "Hector, Jonny"]
[Black "Ermitsch, Magnus"]
[Result "1-0"]
[ECO "B48"]
[WhiteElo "2443"]
[BlackElo "2086"]
[Annotator "ChessBase"]
[PlyCount "73"]
[EventDate "2021.10.18"]
[EventType "swiss"]
[EventCountry "DEN"]
[SourceTitle "playchess.com"]
[Source "ChessBase"]
[SourceQuality "1"]
[TimeControl "40/5400+30:900+30"]

1. e4 {[%emt 0:00:05]} c5 {[%emt 0:00:30]} 2. Nf3 {[%emt 0:00:09]} e6 {[%emt 0:00:19]} 3. d4 {[%emt 0:00:05]} cxd4 {[%emt 0:00:33]} 4. Nxd4 {[%emt 0:00:07]} Nc6 {[%emt 0:00:20]} 5. Nc3 {[%emt 0:00:14]} Qc7 {[%emt 0:00:53]} 6. Be3 {[%emt 0:00:40]} a6 {[%emt 0:00:24]} 7. g4 {[%emt 0:01:19]} d6 {[%emt 0:03:50]} 8. f4 {[%emt 0:04:05]} Nf6 {[%emt 0:02:14]} 9. g5 {[%emt 0:04:17]} Nd7 {[%emt 0:02:50]} 10. Qh5 {[%emt 0:05:22]} g6 {[%emt 0:10:57]} 11. Qe2 {[%emt 0:02:35]} Na5 {[%emt 0:02:50]} 12. f5 {[%emt 0:07:29]} Ne5 {[%emt 0:02:41]} 13. Bh3 {[%emt 0:01:42]} Qc4 {[%emt 0:02:42]} 14. O-O-O {[%emt 0:22:57]} b5 {[%emt 0:04:23]} 15. Qxc4 {[%emt 0:08:07]} Nexc4 {[%emt 0:02:53]} 16. Bf2 {[%emt 0:00:11]} b4 {[%emt 0:05:40]} 17. Na4 {[%emt 0:00:35]} e5 {[%emt 0:01:51]} 18. b3 {[%emt 0:00:21]} Bd7 {[%emt 0:04:57]} 19. Nf3 {[%emt 0:04:52]} h6 {[%emt 0:04:47]} 20. bxc4 {[%emt 0:03:00]} Bxa4 {[%emt 0:00:37]} 21. fxg6 {[%emt 0:01:42]} fxg6 {[%emt 0:03:35]} 22. c5 {[%emt 0:01:37]} hxg5 {[%emt 0:11:18]} 23. Bg4 {[%emt 0:00:30]} Nb7 {[%emt 0:01:27]} 24. cxd6 {[%emt 0:02:34]} Bxd6 {[%emt 0:01:28]} 25. Be3 {[%emt 0:01:54]} Rh7 {[%emt 0:06:24]} 26. Rd2 {[%emt 0:02:41]} Bd7 {[%emt 0:01:43]} 27. Nxg5 {[%emt 0:03:23]} Re7 {[%emt 0:02:00]} 28. Bxd7+ {[%emt 0:04:25]} Rxd7 {[%emt 0:01:29]} 29. Rf1 {[%emt 0:03:08]} Be7 {[%emt 0:03:53]} 30. Rdf2 {[%emt 0:04:51]} O-O-O {[%emt 0:01:36]} 31. Nf7 {[%emt 0:00:48]} Re8 {[%emt 0:03:18]} 32. Nxe5 {[%emt 0:01:19]} Bg5 {[%emt 0:05:36]} 33. Bxg5 {[%emt 0:00:25]} Rxe5 {[%emt 0:00:11]} 34. Rf8+ {[%emt 0:00:39]} Nd8 {[%emt 0:00:09]} 35. Bf6 {[%emt 0:02:06]} Rxe4 {[%emt 0:01:19]} 36. Rd1 {[%emt 0:00:09]} Re2 {[%emt 0:01:45]} 37. Rxd8+ {[%emt 0:01:17]} 1-0

[Event "OEBRO 85th Anniversary GM 2021"]
[Site "Copenhagen"]
[Date "2021.10.24"]
[Round "9.7"]
[White "Porte, Henrik"]
[Black "Brondt, Nicolai Kvist"]
[Result "0-1"]
[ECO "D43"]
[WhiteElo "2170"]
[BlackElo "2217"]
[Annotator "ChessBase"]
[PlyCount "100"]
[EventDate "2021.10.18"]
[EventType "swiss"]
[EventCountry "DEN"]
[SourceTitle "playchess.com"]
[Source "ChessBase"]
[SourceQuality "1"]
[TimeControl "40/5400+30:900+30"]

1. d4 {[%emt 0:00:03]} Nf6 {[%emt 0:00:05]} 2. c4 {[%emt 0:00:03]} c6 {[%emt 0:00:10]} 3. Nc3 {[%emt 0:00:27]} d5 {[%emt 0:00:08]} 4. Nf3 {[%emt 0:00:05]} e6 {[%emt 0:00:04]} 5. Bg5 {[%emt 0:00:19]} h6 {[%emt 0:00:04]} 6. Bxf6 {[%emt 0:00:30]} Qxf6 {[%emt 0:00:05]} 7. e3 {[%emt 0:00:07]} Nd7 {[%emt 0:00:48]} 8. cxd5 {[%emt 0:04:46]} exd5 {[%emt 0:00:26]} 9. Bd3 {[%emt 0:00:05]} Bd6 {[%emt 0:07:01]} 10. Qc2 {[%emt 0:01:02]} O-O {[%emt 0:03:21]} 11. O-O {[%emt 0:02:53]} Qe7 {[%emt 0:01:55]} 12. Rfe1 {[%emt 0:10:43]} Nf6 {[%emt 0:01:57]} 13. e4 {[%emt 0:04:37]} dxe4 {[%emt 0:03:26]} 14. Nxe4 {[%emt 0:00:42]} Nxe4 {[%emt 0:01:16]} 15. Bxe4 {[%emt 0:02:48]} Qf6 {[%emt 0:03:56]} 16. Ne5 {[%emt 0:16:47]} Be6 {[%emt 0:03:02]} 17. Rad1 {[%emt 0:08:44]} Rad8 {[%emt 0:03:57]} 18. Qc3 {[%emt 0:05:49]} Bf5 {[%emt 0:09:14]} 19. Bxf5 {[%emt 0:03:04]} Qxf5 {[%emt 0:00:23]} 20. Nc4 {[%emt 0:04:50]} Bb8 {[%emt 0:07:34]} 21. g3 {[%emt 0:03:42]} Rfe8 {[%emt 0:15:28]} 22. Rxe8+ {[%emt 0:10:14]} Rxe8 {[%emt 0:00:01]} 23. Re1 {[%emt 0:00:19]} Rxe1+ {[%emt 0:08:01]} 24. Qxe1 {[%emt 0:00:04]} Qd7 {[%emt 0:01:23]} 25. Qe4 {[%emt 0:01:11]} Bc7 {[%emt 0:00:58]} 26. b3 {[%emt 0:05:25]} Bd8 {[%emt 0:04:47]} 27. Qe5 {[%emt 0:03:20]} Bf6 {[%emt 0:04:06]} 28. Qb8+ {[%emt 0:03:44]} Kh7 {[%emt 0:00:55]} 29. Qxa7 {[%emt 0:00:14]} Bxd4 {[%emt 0:00:56]} 30. Qa5 {[%emt 0:02:43]} b5 {[%emt 0:05:58]} 31. Ne3 {[%emt 0:00:10]} Bxe3 {[%emt 0:01:49]} 32. fxe3 {[%emt 0:00:05]} Qd1+ {[%emt 0:00:12]} 33. Kf2 {[%emt 0:00:11]} Qc2+ {[%emt 0:04:41]} 34. Kg1 {[%emt 0:02:35]} Qd3 {[%emt 0:00:55]} 35. Qa7 {[%emt 0:00:58]} c5 {[%emt 0:03:15]} 36. Qxc5 {[%emt 0:01:27]} Qb1+ {[%emt 0:00:39]} 37. Kf2 {[%emt 0:02:07]} Qxa2+ {[%emt 0:00:07]} 38. Kf3 {[%emt 0:00:50]} Qxb3 {[%emt 0:00:07]} 39. Qf5+ {[%emt 0:00:41]} g6 {[%emt 0:00:25]} 40. Qd7 {[%emt 0:00:38]} Qc4 {[%emt 0:01:40]} 41. g4 {[%emt 0:03:57]} b4 {[%emt 0:02:05]} 42. h4 {[%emt 0:00:11]} b3 {[%emt 0:06:33]} 43. Qb7 {[%emt 0:04:24]} Qf1+ {[%emt 0:02:38]} 44. Kg3 {[%emt 0:01:02]} Qg1+ {[%emt 0:00:23]} 45. Kh3 {[%emt 0:00:32]} Qxe3+ {[%emt 0:00:15]} 46. Kg2 {[%emt 0:00:04]} Qd2+ {[%emt 0:05:12]} 47. Kg3 {[%emt 0:00:26]} Qc3+ {[%emt 0:01:12]} 48. Kg2 {[%emt 0:00:15]} Kg7 {[%emt 0:01:28]} 49. h5 {[%emt 0:00:10]} g5 {[%emt 0:01:03]} 50. Qb5 {[%emt 0:01:13]} b2 {[%emt 0:00:56]} 0-1

[Event "OEBRO 85th Anniversary GM 2021"]
[Site "Copenhagen"]
[Date "2021.10.24"]
[Round "9.8"]
[White "Simonsen, Carsten"]
[Black "Jacobsen, Mikkel Manosri"]
[Result "1/2-1/2"]
[ECO "D00"]
[WhiteElo "2218"]
[BlackElo "2293"]
[Annotator "ChessBase"]
[PlyCount "84"]
[EventDate "2021.10.18"]
[EventType "swiss"]
[EventCountry "DEN"]
[SourceTitle "playchess.com"]
[Source "ChessBase"]
[SourceQuality "1"]
[TimeControl "40/5400+30:900+30"]

1. d4 {[%emt 0:00:25]} d5 {[%emt 0:13:21]} 2. Bf4 {[%emt 0:00:20]} Nf6 {[%emt 0:00:28]} 3. e3 {[%emt 0:00:07]} c5 {[%emt 0:00:13]} 4. c3 {[%emt 0:00:14]} Nc6 {[%emt 0:00:13]} 5. Nd2 {[%emt 0:00:38]} cxd4 {[%emt 0:00:06]} 6. exd4 {[%emt 0:00:08]} Bg4 {[%emt 0:00:05]} 7. Ngf3 {[%emt 0:02:28]} e6 {[%emt 0:00:26]} 8. Qb3 {[%emt 0:01:33]} Bd6 {[%emt 0:00:36]} 9. Qxb7 {[%emt 0:04:33]} O-O {[%emt 0:00:21]} 10. Ne5 {[%emt 0:06:37]} Na5 {[%emt 0:01:28]} 11. Qa6 {[%emt 0:01:57]} Qc7 {[%emt 0:01:57]} 12. h3 {[%emt 0:12:29]} Bf5 {[%emt 0:01:17]} 13. g4 {[%emt 0:00:23]} Bg6 {[%emt 0:02:50]} 14. Nxg6 {[%emt 0:00:34]} Bxf4 {[%emt 0:00:05]} 15. Nxf4 {[%emt 0:00:16]} Qxf4 {[%emt 0:00:03]} 16. Qxa5 {[%emt 0:00:17]} Ne4 {[%emt 0:00:06]} 17. O-O-O {[%emt 0:02:30]} Nxf2 {[%emt 0:00:24]} 18. Ba6 {[%emt 0:02:14]} Nxd1 {[%emt 0:00:56]} 19. Rxd1 {[%emt 0:03:21]} Qg3 {[%emt 0:04:31]} 20. Bf1 {[%emt 0:07:27]} g5 {[%emt 0:04:42]} 21. Qa6 {[%emt 0:02:07]} Kg7 {[%emt 0:02:23]} 22. Qe2 {[%emt 0:03:24]} Rfc8 {[%emt 0:01:06]} 23. Nf3 {[%emt 0:03:55]} Rab8 {[%emt 0:03:38]} 24. Rd3 {[%emt 0:01:12]} Qf4+ {[%emt 0:01:17]} 25. Nd2 {[%emt 0:01:21]} a5 {[%emt 0:00:30]} 26. Rf3 {[%emt 0:00:34]} Qd6 {[%emt 0:00:20]} 27. Qe3 {[%emt 0:04:13]} h6 {[%emt 0:01:58]} 28. Qe5+ {[%emt 0:07:05]} Qxe5 {[%emt 0:00:11]} 29. dxe5 {[%emt 0:00:08]} d4 {[%emt 0:01:07]} 30. Rd3 dxc3 {[%emt 0:00:19]} 31. bxc3 {[%emt 0:00:32]} Rc5 {[%emt 0:00:53]} 32. Re3 {[%emt 0:01:03]} a4 {[%emt 0:01:00]} 33. a3 {[%emt 0:02:26]} Rc6 {[%emt 0:01:45]} 34. Kc2 {[%emt 0:00:46]} Rcb6 {[%emt 0:00:20]} 35. Re4 {[%emt 0:04:18]} Rb2+ {[%emt 0:00:19]} 36. Kc1 {[%emt 0:00:38]} Ra2 {[%emt 0:00:26]} 37. Rxa4 {[%emt 0:05:49]} Rbb2 {[%emt 0:00:41]} 38. Rd4 {[%emt 0:01:02]} Rc2+ {[%emt 0:00:35]} 39. Kd1 {[%emt 0:00:36]} Rxc3 {[%emt 0:00:27]} 40. Rd3 {[%emt 0:03:16]} Raxa3 {[%emt 0:00:52]} 41. Rxc3 {[%emt 0:15:17]} Rxc3 {[%emt 0:15:07]} 42. Ke2 {[%emt 0:00:13]} Rc5 {[%emt 0:00:31]} 1/2-1/2